bitfinex/quotes_ETHUSD_20240810
["timestamp","ask_amount","ask_price","bid_price","bid_amount"]
[1723266344814,1.663,2602.2,2602.0,0.09655831]
[1723266347082,1.663,2602.2,2602.0,3.93960831]
[1723266349201,1.663,2602.2,2602.1,3.84304]
[1723266349795,1.663,2602.2,2602.1,3.93959831]
[1723266350335,1.663,2602.2,2602.1,0.09655831]
[1723266352242,11.8375,2602.2,2602.1,0.09655831]
[1723266352516,13.02137,2602.2,2601.6,3.84374]
[1723266352723,1.663,2601.8,2601.6,3.84374]
[1723266353236,1.663,2601.8,2601.7,3.84364]
[1723266356425,1.663,2601.8,2601.6,3.84377]
[1723266357686,1.663,2601.8,2601.5,3.84391]
[1723266358398,1.663,2601.8,2601.4,8.695523]
[1723266358607,1.663,2601.6,2601.2,3.84429]
[1723266358791,1.663,2601.6,2601.1,3.0]
[1723266358792,1.663,2601.4,2601.1,3.0]
[1723266359834,1.663,2601.4,2601.1,6.84452]
[1723266361112,1.663,2601.4,2601.1,3.0]
[1723266361653,1.663,2601.4,2601.1,6.84449]
[1723266362344,5.50716,2601.4,2601.1,3.0]
[1723266362497,5.50716,2601.4,2600.4,3.84551]
[1723266362498,1.663,2601.2,2600.7,3.84508]
[1723266362698,1.663,2600.9,2600.8,3.0]
[1723266362932,1.663,2600.9,2600.4,6.17568]
[1723266363149,3.9594,2600.9,2600.5,3.84538]
[1723266363311,3.9594,2600.9,2600.4,4.463008]
[1723266363312,1.663,2600.7,2600.4,4.463008]
[1723266363649,1.663,2600.7,2600.2,3.84575]
[1723266363650,5.50812,2600.7,2600.2,3.84575]
[1723266363834,1.663,2600.3,2600.0,3.84607]
[1723266364414,1.663,2600.3,2600.0,3.84606]
[1723266364611,1.663,2600.3,2600.0,3.84605]
[1723266365039,1.663,2600.1,2600.0,3.84605]
[1723266365240,1.663,2600.1,2600.0,4.615291]
[1723266365539,1.663,2600.1,2600.0,0.09513985]
[1723266365745,7.83856,2600.4,2599.8,3.84636]
[1723266365903,7.83856,2600.4,2599.9,0.09538172]
[1723266366249,3.84571,2600.3,2599.9,0.09538172]
[1723266366627,3.84571,2600.3,2599.8,3.0]
[1723266366945,6.09927,2600.2,2599.8,3.0]
[1723266367111,6.09927,2600.2,2599.9,0.09545084]
[1723266367862,6.09927,2600.2,2599.7,3.0]
[1723266368151,2.2534,2600.2,2599.7,7.531223]
[1723266368352,2.2534,2600.2,2599.8,3.94215871]
[1723266371153,2.2534,2600.2,2599.8,3.94207871]
[1723266371820,2.2534,2600.5,2600.0,3.84605]
[1723266372054,2.2534,2600.5,2599.8,3.94203871]
[1723266372349,3.993,2600.4,2599.8,3.84632]
[1723266372564,3.993,2600.4,2599.9,0.09568414]
[1723266372757,7.8387,2600.4,2599.9,0.09568414]
[1723266372958,3.84572,2600.3,2599.9,0.09568414]
[1723266374374,7.83865,2600.4,2599.9,0.09568414]
[1723266374529,9.23242,2600.4,2599.9,0.09568414]
[1723266374730,3.84596,2600.2,2599.7,3.0]
[1723266375084,3.84596,2600.2,2599.8,0.09681574]
[1723266375458,2.2534,2600.3,2599.8,0.09681574]
[1723266375459,3.993,2600.1,2599.8,0.09681574]
[1723266375645,2.2534,2599.9,2599.8,0.09681574]
[1723266375850,6.0997,2599.9,2599.4,3.84694]
[1723266376050,6.0997,2599.9,2599.8,0.09681574]
[1723266376250,3.84647,2599.8,2599.1,2.4166]
[1723266376484,3.84678,2599.6,2599.2,0.626414]
[1723266376777,7.83947,2599.8,2599.3,3.8471]
[1723266376778,3.993,2599.8,2599.3,3.8471]
[1723266377078,3.993,2599.8,2599.4,3.84695]
[1723266377631,6.2464,2600.1,2599.5,3.84687]
[1723266377875,10.09243,2600.1,2599.5,3.84678]
[1723266378076,10.09243,2600.1,2599.5,4.857829]
[1723266378281,3.84616,2600.0,2599.5,1.011049]
[1723266379186,3.84616,2600.0,2599.4,3.84698]
[1723266379940,6.2464,2600.1,2599.5,3.84688]
[1723266380141,6.2464,2600.1,2599.6,3.84668]
[1723266380348,6.2464,2600.1,2599.7,0.09706639]
[1723266381077,6.2464,2600.1,2599.8,3.84643]
[1723266381577,3.993,2600.1,2599.9,0.09701453]
[1723266382378,3.993,2600.1,2599.7,3.84659]
[1723266382676,3.993,2600.1,2599.8,0.09701453]
[1723266383536,3.993,2600.1,2599.9,0.09701453]
[1723266383736,3.993,2600.1,2599.7,3.84658]
[1723266383979,3.993,2600.1,2600.0,0.09701453]
[1723266384184,3.993,2600.1,2599.7,3.84658]
[1723266384362,7.83901,2600.1,2600.0,0.09701453]
[1723266384570,9.007497,2600.1,2599.5,3.8468]
[1723266384763,7.83901,2600.1,2600.0,0.09701453]
[1723266384968,7.83901,2600.1,2599.5,3.8468]
[1723266385277,7.83901,2600.1,2600.0,0.09701453]
[1723266385482,7.83901,2600.1,2599.6,3.84673]
[1723266385781,7.83901,2600.1,2599.7,0.09701453]
[1723266386774,3.84618,2600.0,2599.7,0.09701453]
[1723266386982,3.84662,2599.7,2599.1,3.84734]
[1723266387280,3.84662,2599.7,2599.2,3.0]
[1723266387653,3.84662,2599.7,2599.2,6.84732]
[1723266387980,1.664,2599.3,2599.2,6.84732]
[1723266388160,1.664,2599.3,2599.2,8.143406]
[1723266388680,1.664,2599.3,2598.5,1.664]
[1723266388681,5.51121,2599.3,2598.7,3.84794]
[1723266388985,1.664,2598.9,2598.7,3.84794]
[1723266389544,1.664,2598.9,2598.6,3.84817]
[1723266389740,1.664,2598.9,2598.0,5.58000366]
[1723266389741,3.84787,2598.9,2598.0,2.33315366]
[1723266389987,3.84787,2598.9,2598.3,3.84854]
[1723266390141,10.09021,2599.1,2598.1,0.23331537]
[1723266390344,6.24264,2599.1,2598.1,0.23331537]
[1723266390546,2.3951,2599.1,2598.6,3.84809]
[1723266390747,3.996,2599.2,2598.6,3.84809]
[1723266391190,2.3951,2599.0,2598.6,3.84809]
[1723266391393,5.019839,2599.2,2598.6,3.84809]
[1723266391553,7.84379,2598.9,2598.3,3.84855]
[1723266392189,7.84379,2598.9,2598.3,7.69713]
[1723266392345,11.69169,2598.9,2598.3,3.84855]
[1723266392546,3.84793,2598.8,2598.3,3.84855]
[1723266393149,3.8481,2598.7,2598.1,6.84885]
[1723266393473,3.8481,2598.7,2598.2,3.0]
[1723266393670,3.8481,2598.7,2598.1,7.88950983]
[1723266393887,7.84384,2598.9,2598.1,6.84885]
[1723266394057,3.84793,2598.8,2598.2,3.84869]
[1723266394874,7.84384,2598.9,2598.1,6.84885]
[1723266394875,7.84384,2598.9,2598.3,3.84865]
[1723266395212,3.996,2598.9,2598.3,3.33595]
[1723266395500,3.996,2599.2,2598.7,3.84807]
[1723266395964,3.996,2599.2,2598.8,0.09397948]
[1723266396308,3.996,2599.2,2598.9,3.84769]
[1723266396475,3.996,2599.2,2598.9,3.94166948]
[1723266396888,3.84694,2599.5,2598.9,3.94166948]
[1723266396889,3.996,2599.5,2599.0,3.84754]
[1723266397062,3.996,2599.5,2599.1,3.84748]
[1723266397483,3.996,2599.5,2599.2,0.09397948]
[1723266397675,3.996,2599.5,2599.2,3.94128948]
[1723266397890,3.996,2599.5,2599.2,0.09397948]
[1723266398089,3.996,2599.5,2598.9,7.69538]
[1723266398401,3.996,2599.5,2599.0,3.94159948]
[1723266398778,3.996,2599.5,2599.1,3.84747]
[1723266399202,3.996,2599.5,2599.2,0.09397948]
[1723266399368,5.404447,2599.5,2599.2,0.09397948]
[1723266399569,5.404447,2599.5,2599.0,3.84761]
[1723266399570,9.251337,2599.5,2599.0,3.84761]
[1723266399781,7.84289,2599.5,2599.1,0.09397948]
[1723266401580,7.84289,2599.5,2598.9,3.84769]
[1723266402119,7.84289,2599.5,2599.0,0.09454148]
[1723266402413,3.996,2599.2,2599.0,0.09454148]
[1723266402911,3.996,2599.2,2599.1,0.09454148]
[1723266403208,3.996,2599.2,2598.8,3.84781]
[1723266403411,3.996,2599.2,2599.1,0.09454148]
[1723266403616,3.996,2599.2,2598.9,3.84776]
[1723266403799,3.996,2599.2,2599.1,0.0913901]
[1723266404016,3.996,2599.2,2599.1,3.84748]
[1723266404332,3.996,2599.2,2599.1,3.9388701]
[1723266404830,3.996,2599.5,2599.1,0.0913901]
[1723266405036,4.765342,2599.5,2599.1,0.0913901]
[1723266408300,2.3132,2599.4,2599.1,0.0913901]
[1723266408694,2.3132,2599.4,2598.9,3.84776]
[1723266408942,2.3132,2599.4,2599.0,3.9389901]
[1723266409743,3.996,2599.2,2599.0,0.0913901]
[1723266411908,8.47434,2599.2,2599.0,0.0913901]
[1723266412109,2.3132,2599.1,2598.4,6.32636]
[1723266412308,2.3132,2599.1,2598.5,0.08917383]
[1723266412309,3.996,2598.9,2598.5,0.08917383]
[1723266413141,3.996,2599.2,2598.7,6.32597]
[1723266413343,3.996,2599.2,2598.8,0.08920843]
[1723266413509,3.996,2599.2,2598.9,3.8477]
[1723266413705,3.996,2599.2,2599.0,0.08939873]
[1723266414416,3.996,2599.2,2598.7,7.69601]
[1723266414629,3.996,2599.2,2599.1,0.08939873]
[1723266414832,5.396353,2599.2,2598.8,3.84791]
[1723266415444,3.996,2599.2,2598.9,3.93715873]
[1723266417789,1.665,2599.0,2598.9,0.08939873]
[1723266417967,1.665,2599.0,2598.7,3.84798]
[1723266418149,1.665,2598.8,2598.7,3.84798]
[1723266419187,1.665,2598.8,2598.5,7.69652]
[1723266419499,1.665,2598.6,2598.5,3.84823]
[1723266420399,1.665,2598.6,2598.4,3.84851]
[1723266420691,1.665,2598.5,2598.4,3.84851]
[1723266421500,1.665,2598.5,2598.3,3.84859]
[1723266423056,1.665,2598.5,2598.2,3.8488]
[1723266423286,3.8481,2598.7,2598.3,3.0]
[1723266423492,1.012785,2598.7,2598.3,3.0]
[1723266424251,2.4318,2598.9,2598.3,6.84863]
[1723266424410,2.4318,2598.9,2598.5,3.84837]
[1723266425135,2.4318,2598.9,2598.6,0.08922573]
[1723266426640,1.665,2598.7,2598.6,0.08922573]
[1723266426832,1.665,2598.7,2598.6,3.93744573]
[1723266427145,1.665,2598.7,2598.6,0.08922573]
[1723266429168,1.665,2598.7,2598.3,3.84856]
[1723266429365,6.10023,2598.8,2598.6,0.08960636]
[1723266429523,7.095028,2598.8,2598.6,0.08960636]
[1723266429726,3.247098,2598.8,2598.6,0.08960636]
[1723266430034,0.994798,2598.8,2598.7,0.08960636]
[1723266430234,6.10005,2599.0,2598.7,0.08960636]
[1723266430461,6.10005,2599.0,2598.4,3.84849]
[1723266430768,1.665,2598.5,2598.4,7.69701]
[1723266430932,1.665,2598.5,2598.4,10.05521]
[1723266431121,1.665,2598.5,2598.4,11.060731]
[1723266440252,1.665,2598.5,2598.4,10.14514446]
[1723266442592,1.665,2598.5,2598.4,7.78694446]
[1723266443354,1.665,2598.5,2598.4,3.93842446]
[1723266444888,1.665,2598.5,2598.4,0.08993446]
[1723266445286,1.665,2598.5,2598.1,3.84888]
[1723266445501,1.665,2598.3,2598.1,3.84888]
[1723266446608,1.665,2598.3,2598.0,3.84901]
[1723266446814,1.665,2598.1,2598.0,3.84901]
[1723266447831,1.665,2598.1,2598.0,7.69812]
[1723266447986,1.665,2598.1,2598.0,8.18337099]
[1723266450595,1.665,2598.1,2598.0,4.33426099]
[1723266450931,1.665,2598.1,2598.0,3.84901]
[1723266452104,1.665,2598.1,2597.9,3.84918]
[1723266453019,1.665,2598.1,2598.0,3.84911]
[1723266454173,1.665,2598.1,2597.9,7.69834]
[1723266455374,1.665,2598.1,2598.0,0.09117205]
[1723266459593,2.4045,2598.7,2598.3,3.84867]
[1723266459880,1.665,2598.4,2598.3,3.84867]
[1723266460353,1.665,2598.4,2598.1,3.84883]
[1723266460555,1.665,2598.2,2598.1,3.84883]
[1723266470406,1.665,2598.2,2598.1,3.93976499]
[1723266474116,1.665,2598.2,2598.1,0.09093499]
[1723266475524,1.665,2598.2,2598.1,3.93989499]
[1723266478187,1.665,2598.2,2598.1,0.09093499]
[1723266478698,2.3633,2598.1,2597.9,7.69842]
[1723266479100,1.665,2598.0,2597.9,3.84917]
[1723266479989,2.06783,2598.0,2597.7,3.84947]
[1723266480197,1.665,2597.8,2597.7,3.84947]
[1723266482697,6.21168,2598.5,2597.8,3.84934]
[1723266483029,1.665,2598.1,2598.0,3.84903]
[1723266485191,1.665,2598.1,2598.0,3.93999096]
[1723266486533,11.13787,2598.9,2598.4,3.84852]
[1723266486838,1.665,2598.5,2598.4,3.84852]
[1723266489096,1.665,2598.5,2598.3,3.84863]
[1723266490010,1.665,2598.5,2598.3,7.69721]
[1723266490210,1.665,2598.5,2598.3,3.84858]
[1723266490617,1.665,2598.5,2598.3,7.69717]
[1723266490935,1.665,2598.5,2598.3,3.84858]
[1723266491435,1.665,2598.5,2598.2,3.84876]
[1723266491658,1.665,2598.3,2598.2,3.84876]
[1723266494702,1.665,2598.3,2598.1,7.69772]
[1723266495123,1.665,2598.3,2598.1,3.84885]
[1723266495299,1.665,2598.3,2598.2,3.84881]
[1723266496446,1.665,2598.3,2598.1,7.6977]
[1723266496751,1.665,2598.3,2598.2,3.84881]
[1723266497561,1.665,2598.3,2598.1,3.84885]
[1723266498040,1.665,2598.3,2598.1,7.69773]
[1723266498406,1.665,2598.3,2598.1,3.84885]
[1723266500326,1.665,2598.3,2598.2,0.09051089]
[1723266501447,1.665,2598.3,2598.0,3.84903]
[1723266501637,1.665,2598.3,2598.1,0.09051089]
[1723266501948,1.665,2598.3,2598.1,3.93945089]
[1723266503848,1.665,2598.3,2598.1,0.09051089]
[1723266504190,1.665,2598.3,2597.9,3.84916]
[1723266504755,1.665,2598.3,2598.0,0.09051089]
[1723266505522,1.665,2598.3,2598.1,3.84896]
[1723266506143,1.665,2598.3,2598.2,0.09051089]
[1723266508327,1.665,2598.3,2598.2,3.93932089]
[1723266509028,1.665,2598.3,2598.2,0.09051089]
[1723266511058,1.665,2598.3,2598.2,3.93932089]
[1723266512012,1.665,2598.5,2598.2,2.54591089]
[1723266512295,1.665,2598.5,2598.4,3.84841]
[1723266512503,1.665,2598.5,2598.4,3.93907666]
[1723266512655,7.29,2598.9,2598.6,3.84812]
[1723266512859,1.665,2598.7,2598.6,3.84812]
[1723266513101,1.665,2598.7,2598.6,3.93878666]
[1723266519492,1.665,2598.7,2598.6,7.78700666]
[1723266519830,1.665,2598.9,2598.8,3.84779]
[1723266520031,1.665,2599.1,2599.0,3.8476]
[1723266520592,1.665,2599.1,2599.0,3.93754842]
[1723266528254,1.665,2599.1,2599.0,0.08994842]
[1723266528536,1.665,2599.1,2598.8,3.84779]
[1723266528750,6.31028,2599.1,2599.0,0.08961967]
[1723266528900,6.31028,2599.1,2598.6,3.84814]
[1723266528901,8.991029,2599.1,2598.6,3.84814]
[1723266529098,1.665,2598.8,2598.7,0.08934284]
[1723266533938,1.665,2598.8,2598.7,3.93741284]
[1723266539462,9.6983,2599.4,2599.0,3.84748]
[1723266539755,1.665,2599.2,2599.1,3.93674149]
[1723266540976,1.665,2599.2,2599.1,7.78422149]
[1723266541180,8.955,2599.4,2599.3,3.84718]
[1723266541376,1.665,2599.4,2599.3,7.69436]
[1723266541576,1.665,2599.4,2599.3,7.78384124]
[1723266542673,2.4083,2599.8,2599.3,1.25260936]
[1723266542970,8.955,2600.0,2599.9,3.8463]
[1723266543170,1.665,2600.0,2599.9,3.8463]
[1723266543344,1.665,2600.0,2599.9,3.93489046]
[1723266543746,1.665,2600.2,2599.9,3.93489046]
[1723266543950,1.665,2600.2,2600.1,3.846]
[1723266544380,1.665,2600.2,2600.1,3.93422738]
[1723266546485,3.09846283,2600.7,2600.3,3.84562]
[1723266546790,1.665,2600.7,2600.6,3.84526]
[1723266547379,1.665,2600.7,2600.6,3.93348738]
[1723266547577,1.665,2600.7,2600.6,0.08822738]
[1723266547940,1.665,2600.7,2600.4,3.84545]
[1723266548275,2.4959,2600.9,2600.6,0.08822738]
[1723266548441,1.665,2600.7,2600.5,3.84532]
[1723266549039,1.665,2600.7,2600.4,3.84545]
[1723266549956,1.665,2600.7,2600.5,3.8454]
[1723266550781,1.665,2600.7,2600.2,3.84577]
[1723266550977,1.665,2600.4,2600.2,3.84577]
[1723266551342,1.665,2600.4,2600.2,3.84576]
[1723266552789,1.665,2600.4,2600.3,3.84571]
[1723266553268,1.665,2600.4,2600.3,7.69142]
[1723266555883,1.665,2600.4,2600.3,3.84571]
[1723266558123,2.4959,2600.9,2600.3,3.84558]
[1723266558321,1.665,2600.6,2600.3,3.84558]
[1723266558614,1.665,2600.6,2600.4,3.84552]
[1723266560430,1.665,2600.6,2600.5,0.08660251]
[1723266560655,1.665,2600.6,2600.5,3.93201251]
[1723266560829,1.665,2600.6,2600.5,0.08660251]
[1723266561741,1.665,2600.6,2600.2,7.69152]
[1723266561940,1.665,2600.6,2600.3,0.08660251]
[1723266562147,1.665,2600.6,2600.2,7.69152]
[1723266562329,1.665,2600.6,2600.4,0.08660251]
[1723266564055,1.665,2600.6,2600.4,3.93215251]
[1723266565058,1.665,2600.6,2600.4,0.08660251]
[1723266565264,7.29,2601.3,2600.5,2.2674]
[1723266565265,2.2592,2601.1,2600.5,2.2674]
[1723266565427,2.2592,2601.1,2600.6,3.84517]
[1723266565428,1.665,2600.7,2600.6,3.84517]
[1723266565821,1.665,2600.7,2600.6,3.93177251]
[1723266568370,1.665,2600.7,2600.6,0.08660251]
[1723266571484,1.665,2600.7,2600.4,3.84552]
[1723266571787,1.665,2600.5,2600.2,5.2674]
[1723266572106,1.665,2600.5,2600.3,3.8457]
[1723266572310,1.665,2600.5,2600.3,7.69133]
[1723266572783,1.665,2600.5,2600.3,3.84563]
[1723266575302,1.665,2600.5,2600.4,0.08649021]
[1723266577917,1.665,2600.5,2600.4,3.93205021]
[1723266583099,1.665,2600.5,2600.4,0.08649021]
[1723266592469,1.665,2600.5,2600.4,3.93205021]
[1723266594479,1.665,2600.5,2600.4,0.08649021]
[1723266597693,6.22113,2601.1,2600.4,10.18611021]
[1723266597898,1.665,2601.0,2600.7,3.84511]
[1723266598090,7.29,2601.2,2600.8,3.84494]
[1723266598271,1.665,2601.0,2600.8,3.93150917]
[1723266599626,1.665,2601.0,2600.8,3.93148917]
[1723266601909,1.665,2601.0,2600.9,3.84482]
[1723266602324,1.665,2601.0,2600.9,7.68964]
[1723266602489,1.665,2601.0,2600.9,7.77620917]
[1723266602976,2.254,2601.5,2601.1,3.8445]
[1723266602977,1.665,2601.2,2601.1,3.8445]
[1723266603179,1.665,2601.2,2601.1,3.93038679]
[1723266604310,1.665,2601.2,2601.1,0.08588679]
[1723266604515,2.450463,2601.2,2601.1,0.08588679]
[1723266604741,1.665,2601.2,2600.8,3.84485]
[1723266604901,2.3454,2601.3,2601.1,0.08579179]
[1723266605234,2.3454,2601.3,2601.2,0.08579179]
[1723266605235,6.18963,2601.3,2601.2,0.08579179]
[1723266605446,3.84441,2601.2,2600.6,3.84514]
[1723266605602,1.665,2600.8,2600.6,7.6903]
[1723266605803,1.665,2600.8,2600.7,3.84511]
[1723266608204,1.665,2600.8,2600.6,3.84514]
[1723266608638,1.665,2600.8,2600.5,3.84538]
[1723266609228,1.665,2600.8,2600.6,3.84526]
[1723266610257,1.665,2600.8,2600.7,3.84511]
[1723266610560,1.665,2600.8,2600.6,7.69042]
[1723266610768,1.665,2600.8,2600.6,4.8962831]
[1723266610973,1.665,2600.8,2600.6,3.84516]
[1723266618176,1.665,2600.8,2600.7,3.84511]
[1723266619481,1.665,2601.0,2600.7,3.84511]
[1723266619687,1.665,2601.2,2601.0,2.3277]
[1723266620247,1.665,2601.2,2601.1,0.08573132]
[1723266620445,1.665,2601.2,2601.1,3.84452]
[1723266620759,1.665,2601.2,2601.1,7.77477132]
[1723266622679,1.665,2601.4,2601.2,3.84435]
[1723266623394,1.665,2601.4,2601.3,0.08573132]
[1723266623771,1.665,2601.4,2601.2,3.84435]
[1723266623961,1.665,2601.4,2601.3,0.08573132]
[1723266624364,1.665,2601.4,2601.2,3.84435]
[1723266624576,1.665,2601.4,2601.3,0.08573132]
[1723266624870,1.665,2601.4,2601.2,3.84435]
[1723266625072,1.665,2601.4,2601.3,0.08527369]
[1723266625384,1.665,2601.4,2601.1,3.84452]
[1723266625586,1.665,2601.4,2601.1,7.68894]
[1723266625883,1.665,2601.4,2601.2,0.08527369]
[1723266627276,1.665,2601.4,2601.2,3.92964369]
[1723266627480,1.665,2601.4,2601.3,3.84423]
[1723266627878,1.665,2601.4,2601.3,3.92950369]
[1723266629376,1.665,2601.4,2601.3,0.08527369]
[1723266629789,1.665,2601.4,2601.2,3.84429]
[1723266630113,2.4545,2601.7,2601.3,0.08527369]
[1723266630274,1.665,2601.4,2601.3,3.92950369]
[1723266632123,1.665,2601.4,2601.3,3.96866024]
[1723266633190,1.665,2601.4,2601.3,7.81289024]
[1723266633389,1.665,2601.4,2601.3,8.66599269]
[1723266633811,1.665,2601.4,2601.3,4.82176269]
[1723266638924,1.665,2601.4,2601.3,0.12443024]
[1723266639327,1.665,2601.4,2601.1,3.84451]
[1723266639624,1.665,2601.2,2601.1,3.84451]
[1723266640242,1.665,2601.2,2600.9,3.84467]
[1723266641990,3.84338,2601.9,2601.0,2.8533]
[1723266641991,3.84351,2601.8,2601.0,2.8533]
[1723266642243,1.665,2601.5,2601.4,3.84406]
[1723266646464,1.665,2601.5,2601.3,7.68825]
[1723266647137,1.665,2601.5,2601.4,3.84408]
[1723266648662,2.3581,2601.9,2601.5,3.84382]
[1723266648834,1.665,2601.5,2601.4,3.84396]
[1723266650282,1.665,2601.5,2601.4,3.96778588]
[1723266653501,1.665,2601.5,2601.4,0.12382588]
[1723266653785,3.9825,2601.5,2601.4,0.12382588]
[1723266655414,1.665,2601.5,2601.4,0.12382588]
[1723266659293,5.90718,2601.5,2601.4,0.12382588]
[1723266659493,7.97473,2601.5,2600.9,3.84473]
[1723266659705,1.665,2601.1,2600.9,7.68945]
[1723266659897,1.665,2601.1,2600.9,3.84472]
[1723266660308,4.1308,2601.1,2600.7,7.69004]
[1723266660516,1.665,2600.9,2600.7,3.84502]
[1723266662682,1.665,2600.9,2600.1,3.84595]
[1723266662683,2.4658,2600.8,2600.3,3.84558]
[1723266663000,2.4658,2600.8,2600.1,3.84591]
[1723266663001,1.665,2600.4,2600.1,3.84587]
[1723266663385,2.4658,2601.0,2600.2,3.9617]
[1723266663603,1.665,2601.0,2600.8,3.84487]
[1723266663825,1.665,2601.0,2600.9,3.84482]
[1723266665247,1.665,2601.0,2600.9,0.12038893]
[1723266665544,1.665,2601.0,2600.6,7.69034]
[1723266665709,10.02221,2601.3,2600.9,0.12038893]
[1723266665905,1.665,2601.0,2600.6,7.69034]
[1723266666134,1.665,2600.8,2600.6,7.69034]
[1723266667148,1.665,2600.8,2600.6,3.84517]
[1723266667373,3.9986,2600.8,2600.4,3.84548]
[1723266667522,1.665,2600.5,2600.3,3.0]
[1723266668651,1.665,2600.5,2600.4,3.84556]
[1723266670715,1.665,2600.5,2600.2,7.69151]
[1723266671053,1.665,2600.5,2600.3,3.84568]
[1723266671826,1.665,2600.5,2600.2,3.84575]
[1723266672157,1.665,2600.5,2600.2,7.69152]
[1723266672769,1.665,2600.3,2600.2,3.84575]
[1723266673269,3.84489,2600.9,2600.2,4.858201]
[1723266673593,1.665,2600.5,2600.3,3.84569]
[1723266677551,1.665,2600.5,2600.4,3.84556]
[1723266678276,1.665,2600.5,2600.3,3.8457]
[1723266679179,1.665,2600.5,2600.1,7.69183]
[1723266679489,1.665,2600.3,2600.1,3.84589]
[1723266679794,1.665,2600.3,2599.9,3.0]
[1723266679795,1.665,2600.3,2599.9,10.69237]
[1723266680027,1.665,2600.1,2600.0,3.0]
[1723266680228,1.665,2600.1,2600.0,3.1167905]
[1723266683322,1.665,2600.1,2600.0,0.1167905]
[1723266683908,1.665,2600.1,2599.7,7.693]
[1723266684108,1.665,2599.8,2599.7,3.8465]
[1723266684309,1.665,2599.8,2599.7,4.3965]
[1723266686006,1.665,2599.8,2599.7,3.8465]
[1723266686414,1.665,2599.8,2599.6,3.84673]
[1723266686951,1.665,2599.8,2599.7,3.84659]
[1723266694729,1.665,2599.8,2599.6,3.84673]
[1723266695056,1.665,2599.8,2599.6,7.69339]
[1723266695249,1.665,2599.8,2599.7,0.11811485]
[1723266697750,1.665,2599.8,2599.7,3.96470485]
[1723266700863,2.3865,2600.5,2600.1,3.84599]
[1723266701067,2.3865,2600.7,2600.2,3.96402533]
[1723266701351,1.665,2600.3,2600.2,3.96402533]
[1723266702353,2.3865,2600.7,2600.4,3.84551]
[1723266702625,2.3865,2600.7,2600.2,0.11817533]
[1723266702626,1.665,2600.7,2600.6,3.84526]
[1723266702827,1.665,2600.7,2600.6,7.69052]
[1723266703361,1.665,2600.7,2600.6,3.96308972]
[1723266703558,0.60234547,2601.8,2601.0,3.84465]
[1723266703559,2.3865,2601.6,2601.0,3.84465]
[1723266703758,1.665,2601.1,2601.0,3.84465]
[1723266707775,1.665,2601.5,2601.4,7.68814]
[1723266707949,2.4972,2601.9,2601.6,7.68743]
[1723266708147,1.665,2601.7,2601.6,3.8437]
[1723266708687,2.4972,2601.9,2601.7,3.84359]
[1723266708971,3.84298,2602.2,2601.7,3.84359]
[1723266708972,1.665,2601.8,2601.7,3.84359]
[1723266709914,2.881498,2602.1,2601.5,3.84392]
[1723266710071,2.881498,2602.1,2601.5,3.84384]
[1723266710276,2.881498,2602.1,2601.6,0.11530814]
[1723266710442,6.724648,2602.1,2601.6,0.11530814]
[1723266710642,1.4554558,2602.0,2601.6,0.11530814]
[1723266711188,1.4554558,2602.0,2601.6,3.95905814]
[1723266712383,1.4554558,2602.0,2601.7,3.84364]
[1723266712557,2.881498,2602.1,2601.7,3.84364]
[1723266712882,2.4972,2602.1,2601.9,3.84333]
[1723266713191,2.4972,2602.3,2601.9,3.84322]
[1723266713352,2.4972,2602.3,2602.0,0.11534266]
[1723266714485,2.4972,2602.3,2602.0,3.95852266]
[1723266716207,2.4972,2602.3,2602.1,3.84303]
[1723266716498,6.4842,2602.5,2602.2,0.11510969]
[1723266716670,6.94311615,2602.5,2602.2,0.11510969]
[1723266718065,6.94311615,2602.5,2602.0,3.84311]
[1723266718262,6.4842,2602.5,2602.1,0.11510969]
[1723266719284,6.4842,2602.5,2602.1,3.95814969]
[1723266720270,3.84261,2602.4,2602.1,0.11510969]
[1723266720510,6.4842,2602.5,2602.1,0.11510969]
[1723266720667,6.4842,2602.5,2602.0,3.84318]
[1723266721005,6.4842,2602.5,2602.1,0.11435893]
[1723266721721,10.32667,2602.5,2602.1,0.11435893]
[1723266721940,11.743569,2602.5,2602.1,0.11435893]
[1723266722090,7.901099,2602.5,2602.1,0.11435893]
[1723266722590,7.901099,2602.5,2602.1,3.95737893]
[1723266722793,3.987,2602.5,2602.1,0.11435893]
[1723266724205,2.2564,2602.3,2602.1,0.11435893]
[1723266724635,2.2564,2602.3,2601.9,3.84334]
[1723266724799,2.2564,2602.3,2602.2,0.11435031]
[1723266725001,2.2564,2602.3,2601.9,3.84334]
[1723266725202,2.2564,2602.3,2602.2,0.11435031]
[1723266725398,2.2564,2602.3,2601.9,3.84334]
[1723266725629,2.2564,2602.3,2602.2,0.11434168]
[1723266726132,2.2564,2602.3,2601.9,3.84333]
[1723266726339,2.2564,2602.3,2602.2,0.11434168]
[1723266726538,3.265008,2602.3,2601.8,6.2096]
[1723266726708,2.2564,2602.3,2602.2,0.11434168]
[1723266726917,2.2564,2602.3,2601.8,6.2096]
[1723266727114,6.09924,2602.3,2602.2,0.11434168]
[1723266727324,3.84313,2602.1,2601.6,3.84366]